Cogmind - Beta 10.2 @@@ ROGUE MODE // 2022.01.06 @ 18:34:10 Player: derk Result: Destroyed by H-88 Terminator with KE Penetrator Performance ------------- Evolutions (9) 4500 Regions Visited (20) 4000 Robots Destroyed (272) 1360 Value Destroyed (12260) 12260 Prototype IDs (51) 1020 Alien Tech Used (4) 800 Bonus (7778) 7778 TOTAL SCORE: 31718 Bonus ------- High Alert Combat Kills 1727 Follower Combat Kills 2198 Network Hubs Disabled 200 Aligned with FarCom 300 Used Core Reset Matrix 3000 Hacked Protovariant 500 Friendly Fire -147 Cogmind --------- Core Integrity 0/1600 Matter 251/300 Energy 98/100 System Corruption 10% Temperature Cool (0) Movement Core (50) Location -1/Access Parts ------- > --- POWER (2) -------- (None) > --- PROPULSION (5) --- (None) > --- UTILITY (16) ----- Advanced Visual Processing Unit > --- WEAPON (2) ------- (None) > --- INVENTORY (4) ---- Phase Armor Core Stripper Peak State ------------ > --- POWER ------------ Micro Fission Core Light Antimatter Reactor > --- PROPULSION ------- Combat Gravmag System Combat Gravmag System Combat Gravmag System Improved Antigrav System Improved Linear Gravjet > --- UTILITY ---------- Advanced Heat Sink Advanced Heat Sink Medium Storage Unit High-capacity Storage Unit Experimental Energy Well Advanced Weight Redist. System Advanced Visual Processing Unit Experimental Signal Interpreter Advanced Target Analyzer Energy Filter Phase Armor Hacking Suite Hacking Suite System Shield System Shield > --- WEAPON ----------- Core Stripper > --- INVENTORY -------- Light Quantum Reactor Biometal Heavy Treads Biometal Heavy Treads Advanced Weapon Cycler Phase Armor Core Reset Matrix Gamma Rifle Nova Cannon Enhanced Nova Cannon Enhanced Nova Cannon Smartbomb Launcher Field Lobotomy Kit [Rating: 172] Favorites ----------- Power Micro Fission Core Engine Cooled Ion Engine Power Core Micro Fission Core Reactor Particle Reactor Propulsion Combat Gravmag System Treads Light Treads Leg Aluminum Leg Wheel Armored Huge Wheel Hover Unit Combat Gravmag System Utility High-capacity Storage Unit Device Advanced Heat Sink Storage High-capacity Storage Unit Processor Salvage Targeting Computer Hackware System Shield Protection Improved Medium Armor Plating Artifact Phase Armor Weapon Advanced Beam Cannon Energy Gun Advanced Variable Charge Gun Energy Cannon Advanced Beam Cannon Ballistic Gun Enhanced Autogun Ballistic Cannon Antimatter Cannon Launcher Mini Grenade Launcher Special Weapon Field Lobotomy Kit Impact Weapon Impact Mace Slashing Weapon Falx Piercing Weapon Lance Special Melee Weapon Improved Datajack Build | -11 -10 -10 -9 -9 -9 -8 -8 -7 -6 -5 -5 -5 -5 -5 -4 -3 -3 -2 -2 -1 ------- Run | Scr Mat Min Mat Min Exi Min Mat Fac Fac Fac Ext Cet Arc Hub Fac Res Tes Res Qua Acc Slots Evolved 18 | . . . 2 . . . 2 2 2 2 . . . . 2 2 . 2 . 2 Power 1 | . . . . . . . . . . . . . . . . 1 . . . . Propulsion 3 | . . . 1 . . . . . . . . . . . 1 1 . . . . Utility 14 | . . . 1 . . . 2 2 2 2 . . . . 1 . . 2 . 2 Weapon . | . . . . . . . . . . . . . . . . . . . . . Parts Attached 471 | 7 9 . 16 . 2 1 9 69 16 39 31 15 13 20 83 19 13 27 26 56 Power 29 | 1 1 . 3 . . . . 5 1 2 1 . 1 . 4 2 1 1 2 4 Engine 9 | 1 1 . 2 . . . . 2 1 1 1 . . . . . . . . . Core 10 | . . . 1 . . . . 3 . . . . . . 2 2 1 . . 1 Reactor 10 | . . . . . . . . . . 1 . . 1 . 2 . . 1 2 3 Propulsion 90 | 2 2 . 8 . . . 1 13 2 4 4 1 4 4 15 7 1 4 4 14 Treads 44 | 2 2 . 7 . . . 1 10 1 3 3 . 2 2 5 . . . . 6 Leg 1 | . . . 1 . . . . . . . . . . . . . . . . . Wheel 15 | . . . . . . . . 3 1 1 1 1 2 2 3 1 . . . . Hover 30 | . . . . . . . . . . . . . . . 7 6 1 4 4 8 Flight . | . . . . . . . . . . . . . . . . . . . . . Utility 176 | 2 2 . 2 . 2 . 5 28 8 21 8 2 3 14 26 4 7 17 12 13 Device 78 | . . . 1 . . . 2 12 4 12 4 1 1 4 13 1 3 9 5 6 Storage 25 | 2 2 . . . 2 . 1 4 1 . 1 . . . 3 1 2 4 1 1 Processor 12 | . . . . . . . . 1 1 1 . . . . 1 1 1 3 1 2 Hackware 19 | . . . . . . . . 2 . 1 . . . 5 7 1 . . 3 . Protection 37 | . . . 1 . . . 2 9 2 7 3 1 2 5 2 . 1 1 1 . Artifact 5 | . . . . . . . . . . . . . . . . . . . 1 4 Weapon 176 | 2 4 . 3 . . 1 3 23 5 12 18 12 5 2 38 6 4 5 8 25 Energy Gun 17 | 1 . . . . . . . . 1 . . 3 . 1 1 . . 5 1 4 Energy Cannon 34 | . 1 . 3 . . . 1 6 . 3 2 . . . 3 2 . . 3 10 Ballistic Gun 48 | 1 3 . . . . . 2 5 3 5 4 3 3 1 16 1 . . . 1 Ballistic Cannon 5 | . . . . . . . . . . . . 1 . . 3 1 . . . . Launcher 22 | . . . . . . 1 . 3 . 1 4 3 1 . 4 1 1 . 1 2 Special Weapon 4 | . . . . . . . . . . . 1 1 . . . . . . . 2 Impact Weapon 7 | . . . . . . . . 1 1 . . . . . . . . . 1 4 Slashing Weapon 22 | . . . . . . . . 5 . 3 4 1 1 . 6 . 2 . . . Piercing Weapon 9 | . . . . . . . . . . . . . . . 3 1 1 . 2 2 Special Melee Weapon 8 | . . . . . . . . 3 . . 3 . . . 2 . . . . . Unidentified Prototypes 21 | . . . 2 . . . 1 1 1 1 . 1 1 . . . 5 4 3 1 Parts Lost 130 | . 4 . . . . . . 12 1 21 5 4 . 9 24 5 9 1 9 26 Power 9 | . 1 . . . . . . 1 . 1 . . . . 2 . 1 . 1 2 Propulsion 30 | . . . . . . . . 4 1 3 3 1 . 1 5 2 . . 2 8 Utility 59 | . . . . . . . . 3 . 12 1 2 . 7 6 2 7 1 5 13 Weapon 32 | . 3 . . . . . . 4 . 5 1 1 . 1 11 1 1 . 1 3 Highest Loss Streak 10 | . 3 . . . . . . 4 1 7 1 2 . 4 5 2 6 1 6 10 Average Slot Usage (%) 93 | . 98 100 98 100 100 100 98 94 93 89 93 91 90 91 90 91 90 97 93 83 Engine 3 | . 13 14 6 11 11 11 9 3 6 2 1 5 1 . . . . . . . Core 1 | . . . 4 . . . . 3 . . . . . . 1 9 9 5 2 1 Reactor 1 | . . . . . . . . . . 2 3 . 3 5 3 . . 2 4 5 Treads 11 | . 27 28 29 33 33 33 27 12 6 6 4 5 5 4 5 . . . . 1 Wheel 2 | . . . . . . . . 4 6 4 4 4 4 5 3 . . . . . Hover 3 | . . . . . . . . . . . . . . . 3 22 23 21 20 15 Device 9 | . . . 9 11 11 11 11 6 8 8 15 17 17 11 7 3 12 22 10 14 Storage 20 | . 28 28 22 22 22 22 26 22 20 23 23 23 23 23 21 10 11 7 11 10 Processor 3 | . . . . . . . . 2 6 5 5 . . . . 6 6 12 13 12 Hackware 11 | . . . . . . . . 13 13 9 5 5 5 18 30 26 18 8 14 15 Protection 4 | . . . 1 . . . 5 5 10 8 11 15 13 6 . . . 5 2 . Energy Cannon 4 | . 8 14 20 22 22 11 16 3 . 1 . . . . . 2 . . . 2 Ballistic Gun 5 | . 17 14 1 . . . 1 7 11 5 4 5 8 5 3 . . . . . Slashing Weapon 1 | . . . . . . . . 2 . 2 . . 1 2 2 . 2 . . . Naked Turns . | . . . . . . . . . . . . . . . . . . . . . Heaviest Build 182 | 14 43 43 49 49 81 81 105 122 158 169 170 171 178 182 168 96 84 90 116 139 Greatest Support 154 | 40 40 40 63 63 63 63 63 71 30 86 98 98 98 40 126 125 125 125 125 154 Greatest Overweight (x) 52 | 1 1 1 1 . 1 1 1 32 5 6 52 13 6 14 13 . . . 1 1 Average Overweight (x) 2 | . . 1 . . . 1 1 2 4 4 5 6 4 6 4 . . . . . Largest Inventory Capacity 36 | 8 16 16 16 16 20 20 26 28 36 36 36 36 36 36 36 20 20 16 16 16 Average Capacity 26 | 6 15 16 16 16 18 20 25 26 28 36 36 36 36 36 35 20 12 12 16 14 Most Carried 36 | 6 14 15 16 16 18 20 26 28 28 36 36 34 36 36 29 19 16 14 16 16 Average Carried 21 | 4 12 14 15 16 15 19 20 22 22 28 34 28 32 32 22 16 11 11 14 14 Final Capacity 36 | 8 16 16 16 16 20 20 26 28 36 36 36 36 36 36 20 20 12 16 16 4 Final Carried 36 | 6 14 15 16 16 18 20 25 22 28 34 34 31 36 27 17 16 11 14 16 4 Class Distribution -------------------- 50% | Hauler-Mutant 15% | Wizard-Mutant 14% | Mutant 9% | Scavenger-Mutant 5% | Hacker-Mutant Dominant Class ---------------- Mutant | -10/Materials Mutant | -10/Mines Mutant | -9/Materials Mutant | -9/Mines Hauler-Mutant | -9/Exiles Hauler-Mutant | -8/Mines Hauler-Mutant | -8/Materials Hauler-Mutant | -7/Factory Hauler-Mutant | -6/Factory Hauler-Mutant | -5/Factory Hauler-Mutant | -5/Extension Hauler-Mutant | -5/Cetus Hauler-Mutant | -5/Archives Scavenger-Mutant | -5/Hub_04(d) Wizard-Mutant | -4/Factory Wizard-Mutant | -3/Research Hacker-Mutant | -3/Testing Scavenger-Mutant | -2/Research Scavenger-Mutant | -2/Quarantine Scavenger-Mutant | -1/Access Resources | -11 -10 -10 -9 -9 -9 -8 -8 -7 -6 -5 -5 -5 -5 -5 -4 -3 -3 -2 -2 -1 ----------- Run | Scr Mat Min Mat Min Exi Min Mat Fac Fac Fac Ext Cet Arc Hub Fac Res Tes Res Qua Acc Matter Collected 9405 | 273 159 9 160 . 20 30 143 1285 400 997 698 483 480 286 2019 259 90 409 757 448 Remotely . | . . . . . . . . . . . . . . . . . . . . . Salvage Created 13956 | 79 430 2 323 23 . . 474 1990 392 2215 937 723 464 640 2711 591 91 305 544 1022 Parts 671 | 6 24 . 20 3 . . 30 86 25 89 49 39 36 27 102 34 6 13 38 44 Haulers Intercepted 8 | . 2 . 2 . . . 1 . . 3 . . . . . . . . . . Recyclers Shooed 11 | . . . 1 . . . . 3 . 5 . . . . 1 1 . . . . Parts Field Recycled . | . . . . . . . . . . . . . . . . . . . . . Retrieved Matter . | . . . . . . . . . . . . . . . . . . . . . Parts Self-Destructed . | . . . . . . . . . . . . . . . . . . . . . Prevented . | . . . . . . . . . . . . . . . . . . . . . Kills | -11 -10 -10 -9 -9 -9 -8 -8 -7 -6 -5 -5 -5 -5 -5 -4 -3 -3 -2 -2 -1 ------- Run | Scr Mat Min Mat Min Exi Min Mat Fac Fac Fac Ext Cet Arc Hub Fac Res Tes Res Qua Acc Combat Hostiles Destroyed 196 | . 8 2 4 . . . 8 31 6 20 14 13 2 7 47 7 1 3 8 15 Melee 12 | . . . . . . . . . 1 . 1 . . . 6 1 1 2 . . Guns 93 | . 7 1 . . . . . 21 5 16 2 8 2 7 21 . . . 3 . Cannons 40 | . . . 4 . . . 4 8 . 3 1 . . . 4 1 . . 2 13 AOE 36 | . 1 1 . . . . 4 2 . . 10 4 . . 8 3 . . 3 . Classes Destroyed 15 | 2 5 1 1 1 . . . 4 . . . . . . 1 . . . . . Worker 18 | 1 . . . . . . . 2 1 3 1 . . 4 . 3 . . 1 2 Builder 5 | . 1 . . . . . . 1 . . 1 . . . . 1 1 . . . Tunneler 3 | . . . . 1 . . . 1 . . . . . 1 . . . . . . Hauler 8 | . 2 . 2 . . . 1 . . 3 . . . . . . . . . . Recycler 16 | 1 . . . . . . 2 4 . 4 1 . . . 3 1 . . . . Operator 17 | . 2 . 2 . . . 2 . . . . . 7 . 1 1 . . 1 1 Watcher 9 | . . . . . . . . 2 . . 1 . . 1 . 1 . 1 2 1 Swarmer 43 | . 3 . . . . . 4 5 . 2 8 . . . 16 . . . . 5 Grunt 55 | . 5 . 2 . . . 2 14 . 6 2 7 . 1 14 1 . . . 1 Brawler 1 | . . . . . . . . . . . . . . . 1 . . . . . Duelist 2 | . . . . . . . . 1 . . . 1 . . . . . . . . Sentry 32 | . . . 2 . . . 2 6 4 2 2 . 2 5 5 . . 1 . 1 Demolisher 2 | . . 2 . . . . . . . . . . . . . . . . . . Hunter 20 | . . . . . . . . 1 . 3 2 2 . 1 . 2 . 2 5 2 Programmer 39 | . . . . . . . . 4 2 7 . 1 . . 11 4 1 . 3 6 Cetus Guard 2 | . . . . . . . . . . . . 2 . . . . . . . . Best Kill Streak 11 | 1 3 2 2 1 . . 4 7 1 8 7 3 3 7 7 7 1 2 5 11 Combat Bots Only 11 | . 3 2 2 . . . 4 7 1 7 6 3 1 2 7 3 1 2 3 11 Max Kills in Single Turn 4 | 1 2 1 1 1 . . 2 2 1 1 2 2 1 4 4 2 1 1 2 1 Gunslinging 1 | . 1 . . . . . . . . . . . . . . . . . . . Exploded 4 | . 1 1 . . . . 2 1 . . 2 2 . . 4 2 . . 2 . Melee 1 | . . . . . . . . . 1 . 1 . . . 1 1 1 1 . . Uniques/NPCs Destroyed . | . . . . . . . . . . . . . . . . . . . . . Combat | -11 -10 -10 -9 -9 -9 -8 -8 -7 -6 -5 -5 -5 -5 -5 -4 -3 -3 -2 -2 -1 -------- Run | Scr Mat Min Mat Min Exi Min Mat Fac Fac Fac Ext Cet Arc Hub Fac Res Tes Res Qua Acc Damage Taken 28452 | . 759 359 45 . . . 227 2890 842 3350 885 1102 467 1676 7118 1311 1113 820 1228 4260 Core 4361 | . 143 69 . . . . 6 208 64 255 140 81 29 84 951 305 111 21 290 1604 Absorbed by Shields 438 | . . . . . . . . . . 100 318 . . . . . . . . 20 Reduced by Siege Mode 273 | . . . . . . . . . . . . . . 22 154 . . . . 97 Redirected to Core 754 | . . . . . . . . . . . . . . . . . . . 249 505 Core Remaining (%) 67 | 100 . 15 . . . 100 98 70 92 . . . . 41 17 . 68 . 78 . Volleys Fired 834 | 6 52 3 14 1 . . 19 128 25 113 39 48 31 34 131 18 . 40 61 71 Largest 2 | 2 2 2 2 2 . . 2 2 2 2 2 2 2 2 2 1 . 1 1 2 Hottest 275 | 60 76 76 136 136 . . 136 136 53 123 125 273 68 275 275 94 . 80 113 195 Shots Fired 1269 | 12 98 6 28 2 . . 36 239 46 185 53 62 57 56 197 18 . 40 61 73 Gun 861 | 12 94 3 . . . . 1 147 46 137 25 50 54 56 139 . . 40 48 9 Cannon 329 | . 4 3 28 2 . . 33 89 . 43 11 1 . . 38 10 . . 7 60 Launcher 74 | . . . . . . . 2 3 . 5 16 10 3 . 20 8 . . 6 1 Special 5 | . . . . . . . . . . . 1 1 . . . . . . . 3 Kinetic 703 | 6 73 3 . . . . 1 147 46 137 25 35 54 22 154 . . . . . Thermal 364 | . . . 28 2 . . 33 89 . 31 11 16 . 34 13 . . . 47 60 Explosive 27 | . . . . . . . 2 . . . . 5 3 . 2 8 . . 6 1 Electromagnetic 170 | 6 25 3 . . . . . 3 . 17 16 5 . . 28 10 . 40 8 9 Robot Hit Streak 19 | 3 10 3 14 15 . . 18 17 14 15 14 5 17 15 19 4 . 13 11 15 Robot Miss Streak 7 | 3 2 1 1 . . . 4 7 3 5 4 4 3 2 5 1 . 2 2 2 Penetration Max 2 | . . . . . . . . . . 1 . . 1 1 2 . . . . . Secondary Targets 9 | . 1 . . . . . . 1 . 4 . 1 . 2 . . . . . . Max Gunslinging Chain 1 | . 1 . . . . . . 1 . 1 . 1 . 1 . . . . . . Shots Hit Robots 998 | 7 67 4 20 1 . . 20 182 43 154 70 28 44 47 167 13 4 30 43 54 Core Hits 618 | 4 29 3 8 1 . . 17 113 27 114 33 27 23 27 94 27 2 14 33 22 Critical Hits 75 | . . . 4 . . . 3 11 . 8 4 9 14 . 17 2 . 1 . 2 Critical Kills 31 | . . . 2 . . . 1 4 . 6 . 5 6 . 6 . . 1 . . Critical Parts Destroyed 40 | . . . 2 . . . 2 7 . 2 2 4 6 . 11 2 . . . 2 Melee Attacks 257 | . . . . . . . . 20 9 17 39 1 4 4 62 11 28 11 35 16 Kinetic 6 | . . . . . . . . . . . . . . . . . . . . 6 Impact 9 | . . . . . . . . . 9 . . . . . . . . . . . Slashing 109 | . . . . . . . . 20 . 17 11 1 4 4 30 . 22 . . . Piercing 105 | . . . . . . . . . . . . . . . 32 11 6 11 35 10 Sneak Attacks 48 | . . . . . . . . 4 1 2 31 . 3 . 2 1 2 . 1 1 Combat Hostiles . | . . . . . . . . . . . . . . . . . . . . . Follow-up Attacks . | . . . . . . . . . . . . . . . . . . . . . Damage Inflicted 32743 | 89 732 129 433 21 . . 622 4438 1055 4280 2594 1330 997 1841 6862 1311 503 534 2508 2464 Guns 13427 | 89 570 39 . . . . . 2235 745 2452 346 478 317 1425 2988 . . 441 1078 224 Cannons 7710 | . 61 22 433 21 . . 387 1375 . 1436 359 39 . . 1199 381 . . 277 1720 Explosions 6004 | . 100 68 . . . . 235 354 . 149 852 813 124 416 1231 646 . . 940 76 Melee 5535 | . . . . . . . . 474 280 243 1037 . 556 . 1444 284 503 93 213 408 Ramming 67 | . 1 . . . . . . . 30 . . . . . . . . . . 36 Kinetic 11050 | 25 363 39 . . . . . 2235 745 2452 346 141 317 510 3618 . . . . 259 Thermal 8785 | . 100 68 433 21 . . 387 1538 . 1167 476 376 . 915 323 . . . 1261 1720 Explosive 2580 | . . . . . . . 235 . . . . 453 124 . 106 646 . . 940 76 Electromagnetic 4985 | 64 268 22 . . . . . 191 . 418 735 360 . 416 1371 381 . 441 94 224 Impact 280 | . . . . . . . . . 280 . . . . . . . . . . . Slashing 3630 | . . . . . . . . 474 . 243 1037 . 556 . 895 . 425 . . . Piercing 1366 | . . . . . . . . . . . . . . . 549 284 78 93 213 149 Highest Corruption 20 | . . . . . . . . 5 3 5 4 4 4 4 20 . 7 1 3 10 Average Corruption 4 | . . . . . . . . 2 2 2 4 4 4 4 6 . 7 1 2 3 Corruption Purged 6 | . . . . . . . . 5 . 1 . . . . . . . . . . Effects 279 | . . . . . . . . 25 13 27 45 15 13 15 104 . 5 . 6 11 Message Errors 58 | . . . . . . . . 11 4 5 13 2 1 4 13 . . . 1 4 Matter Fused 61 | . . . . . . . . 3 1 4 16 6 5 3 18 . 2 . 2 1 Heat Flow Errors 32 | . . . . . . . . 4 3 5 7 . 2 1 7 . 1 . . 2 Energy Discharges 31 | . . . . . . . . 3 3 4 4 3 . 3 10 . 1 . . . Parts Rejected 4 | . . . . . . . . . . . 1 . . 1 2 . . . . . Data Loss (minor) 29 | . . . . . . . . 2 2 4 2 2 2 1 11 . 1 . 2 . Data Loss (major) 4 | . . . . . . . . 1 . . . . . . 3 . . . . . Misfires 3 | . . . . . . . . . . . . . . . 3 . . . . . Alerts 1 | . . . . . . . . . . . . . . . 1 . . . . . Targeting Errors 46 | . . . . . . . . 1 . 5 2 1 1 . 31 . . . 1 4 Weapon Failures 10 | . . . . . . . . . . . . 1 2 2 5 . . . . . Overload Shots 11 | . . . . . . . . . . . . 8 . 2 1 . . . . . Overflow Damage 1350 | . 6 . 12 . . . . 196 81 106 178 13 148 25 166 . 200 . 6 213 Projectiles 301 | . 6 . 12 . . . . 16 . 100 . . . . 101 . . . . 66 Explosions 149 | . . . . . . . . 68 . . 1 13 . 25 36 . . . 6 . Melee 900 | . . . . . . . . 112 81 6 177 . 148 . 29 . 200 . . 147 Knockbacks 12 | . . . . . . . . . 1 . . . . . 11 . . . . . Impact 1 | . . . . . . . . . 1 . . . . . . . . . . . Kinetic 11 | . . . . . . . . . . . . . . . 11 . . . . . Secondary . | . . . . . . . . . . . . . . . . . . . . . Self-Inflicted Damage 455 | . 34 . . . . . 18 131 15 15 12 9 . 101 4 44 . . 36 36 Shots 16 | . 1 . . . . . 1 3 . 5 1 1 . 1 1 1 . . 1 . Rammed 2 | . 1 . . . . . . . 1 . . . . . . . . . . . Targets Rammed 2 | . 1 . . . . . . . 1 . . . . . . . . . . . Kicked . | . . . . . . . . . . . . . . . . . . . . . Crushed . | . . . . . . . . . . . . . . . . . . . . . Highest Temperature 506 | 40 147 30 180 60 . . 184 339 214 376 206 330 156 211 260 250 190 506 110 392 Average Temperature 87 | 17 41 14 68 34 . . 59 99 98 76 50 130 79 41 90 89 54 176 43 118 Received Heat Transfer 3852 | . 309 . 24 . . . 81 813 216 434 112 198 18 252 1002 144 42 54 18 135 Effects 14 | . . . . . . . . 1 . . . 1 . . 2 2 . 5 . 3 Shutdowns 2 | . . . . . . . . . . . . . . . . . . 1 . 1 Energy Bleed 5 | . . . . . . . . 1 . . . . . . . 2 . 1 . 1 Interference 5 | . . . . . . . . . . . . . . . 2 . . 3 . . Short Circuit 1 | . . . . . . . . . . . . 1 . . . . . . . . Damage (minor) 1 | . . . . . . . . . . . . . . . . . . . . 1 Siege Activations 9 | . . . . . . . . . . . 1 . . 2 4 . . . . 2 Total Turns 184 | . . . . . . . . . . . 20 . . 21 99 . . . . 44 Longest Duration 41 | . . . . . . . . . . . 20 . . 12 41 . . . . 27 Robots Corrupted 13 | . . . . . . . . . . 1 . 1 . . 7 2 . 1 . 1 Combat Hostiles 12 | . . . . . . . . . . 1 . 1 . . 7 2 . 1 . . Parts Fried 39 | . . . . . . . . 1 . 6 4 1 . 2 15 4 . 3 . 3 Impact Corruptions 4 | . . . . . . . . . 4 . . . . . . . . . . . Robots Melted . | . . . . . . . . . . . . . . . . . . . . . Combat Hostiles . | . . . . . . . . . . . . . . . . . . . . . Parts Melted 23 | . 1 . 1 . . . 2 5 . 2 . . . 4 2 . . . . 6 Heat Transferred 9886 | . 200 100 777 37 . . 703 2542 . 675 450 348 . 1123 383 . . . 1295 1253 Parts Sabotaged 2 | . . . . . . . . . . . . . . . . . . 2 . . Parts Stolen . | . . . . . . . . . . . . . . . . . . . . . Parts Stripped . | . . . . . . . . . . . . . . . . . . . . . Power Chain Reactions 9 | . 2 1 . . . . . . . . 4 . . . 2 . . . . . Missiles Intercepted . | . . . . . . . . . . . . . . . . . . . . . Alert | -11 -10 -10 -9 -9 -9 -8 -8 -7 -6 -5 -5 -5 -5 -5 -4 -3 -3 -2 -2 -1 ------- Run | Scr Mat Min Mat Min Exi Min Mat Fac Fac Fac Ext Cet Arc Hub Fac Res Tes Res Qua Acc Peak Influence 1453 | 10 209 50 181 75 . . 234 773 372 259 1453 1073 687 591 1107 700 445 625 672 719 Initial 813 | . 6 . 19 70 . . . 30 372 112 103 813 429 240 289 562 393 224 243 403 Average 307 | 2 50 39 113 71 . . 130 263 255 108 665 921 627 127 315 528 371 429 387 515 Maximum Alert Level 4 | . 1 . . . . . 1 3 1 1 4 3 2 2 4 3 2 2 2 3 Low Security (%) 46 | 100 92 100 100 100 . 100 80 50 30 91 13 . . 89 37 . . . . . Level 1 20 | . 7 . . . . . 19 18 69 8 15 . . 10 32 . 45 36 65 2 Level 2 23 | . . . . . . . . 23 . . 33 . 100 . 19 97 54 63 34 95 Level 3 6 | . . . . . . . . 6 . . 12 100 . . 10 1 . . . 1 Level 4 2 | . . . . . . . . . . . 25 . . . . . . . . . Level 5 . | . . . . . . . . . . . . . . . . . . . . . High Security . | . . . . . . . . . . . . . . . . . . . . . Max Security . | . . . . . . . . . . . . . . . . . . . . . Squads Dispatched 67 | . 1 . 3 . . . 2 11 3 6 8 1 . 1 14 2 4 4 4 3 Investigation 10 | . . . 1 . . . 1 1 . 2 2 1 . . 1 . 1 . . . Extermination 20 | . . . . . . . . 4 2 3 . . . . 6 1 . . 2 2 Reinforcement 23 | . 1 . 2 . . . 1 5 . 1 4 . . 1 3 1 1 1 2 . Assault 9 | . . . . . . . . 1 . . 2 . . . 1 . 2 2 . 1 Garrison 5 | . . . . . . . . . 1 . . . . . 3 . . 1 . . Intercept . | . . . . . . . . . . . . . . . . . . . . . Construction Impeded 7 | . . . . . . . . 2 . . 4 . . . 1 . . . . . Haulers Reinforced 2 | . . . . . . . . . . 1 . . . . . . 1 . . . Stealth | -11 -10 -10 -9 -9 -9 -8 -8 -7 -6 -5 -5 -5 -5 -5 -4 -3 -3 -2 -2 -1 --------- Run | Scr Mat Min Mat Min Exi Min Mat Fac Fac Fac Ext Cet Arc Hub Fac Res Tes Res Qua Acc Distress Signals 26 | . . 1 . . . . 1 6 1 1 2 1 . 2 2 3 1 1 . 4 Communications Jammed . | . . . . . . . . . . . . . . . . . . . . . Distress Signals . | . . . . . . . . . . . . . . . . . . . . . Times Spotted 471 | . 23 5 11 . . . 20 66 7 29 61 20 13 11 64 28 19 21 22 51 Peak Tracking Total 14 | . 5 4 3 . . . 4 7 2 7 7 5 1 3 8 10 8 7 7 14 Tactical Retreats 39 | . . 1 3 . . . 1 6 . . 4 . . 2 6 4 3 1 3 5 Traps | -11 -10 -10 -9 -9 -9 -8 -8 -7 -6 -5 -5 -5 -5 -5 -4 -3 -3 -2 -2 -1 ------- Run | Scr Mat Min Mat Min Exi Min Mat Fac Fac Fac Ext Cet Arc Hub Fac Res Tes Res Qua Acc Traps Triggered 16 | . 1 . 1 . . . . 4 . . 3 . . . 4 . . 1 . 2 Indirectly . | . . . . . . . . . . . . . . . . . . . . . Trap Hack Attempts 64 | . . . . . . . . 4 . . 52 . . . 8 . . . . . Triggered 1 | . . . . . . . . . . . . . . . 1 . . . . . Disarmed 2 | . . . . . . . . 1 . . . . . . 1 . . . . . Reprogrammed 31 | . . . . . . . 6 2 . . 5 . . 10 2 6 . . . . Reused 9 | . . . . . . . 1 . . . . . . 4 1 3 . . . . Traps Extracted . | . . . . . . . . . . . . . . . . . . . . . Installed . | . . . . . . . . . . . . . . . . . . . . . Triggered 9 | . . . . . . . 1 . . . . . . 4 1 3 . . . . Power Sources Rigged 61 | . . . . . . . 6 23 3 8 21 . . . . . . . . . Exploded 34 | . . . . . . . 4 12 2 4 6 5 . . 1 . . . . . Machines | -11 -10 -10 -9 -9 -9 -8 -8 -7 -6 -5 -5 -5 -5 -5 -4 -3 -3 -2 -2 -1 ---------- Run | Scr Mat Min Mat Min Exi Min Mat Fac Fac Fac Ext Cet Arc Hub Fac Res Tes Res Qua Acc Machines Disabled 50 | . . . 1 . . . 3 4 . 1 7 1 5 12 6 2 2 . 4 2 Max in Single Turn 10 | . . . 1 . . . 2 2 . 1 1 1 2 10 1 1 1 . 1 1 Garrison Access 6 | . . . . . . . . . 1 1 . . . . 1 1 1 1 . . Network Hub 1 | . . . . . . . . . . . . . . 1 . . . . . . Energy Cycler 2 | . . . . . . . . . . . 2 . . . . . . . . . Machines Sabotaged . | . . . . . . . . . . . . . . . . . . . . . Garrisons Compromised . | . . . . . . . . . . . . . . . . . . . . . Overloaded Fab Kills . | . . . . . . . . . . . . . . . . . . . . . Fab Network Shutdowns 1 | . . . . . . . . . . . . . . . 1 . . . . . Hacking | -11 -10 -10 -9 -9 -9 -8 -8 -7 -6 -5 -5 -5 -5 -5 -4 -3 -3 -2 -2 -1 --------- Run | Scr Mat Min Mat Min Exi Min Mat Fac Fac Fac Ext Cet Arc Hub Fac Res Tes Res Qua Acc Machines Accessed 109 | . 8 . 4 . 2 . 7 12 7 10 11 1 . 6 12 7 8 5 6 3 Terminals 67 | . 7 . 2 . . . 6 6 3 5 11 1 . 6 6 4 3 1 5 1 Fabricators 12 | . . . . . . . . 3 3 1 . . . . 2 . 1 1 . 1 Repair Stations 10 | . 1 . 1 . . . . 1 . 1 . . . . 2 1 1 1 . 1 Recycling Units 2 | . . . . . . . . . . 1 . . . . 1 . . . . . Scanalyzers 11 | . . . 1 . . . 1 2 . 1 . . . . . 1 2 2 1 . Garrison Access 5 | . . . . . . . . . 1 1 . . . . 1 1 1 . . . Total Hacks 489 | . 25 . 14 . 2 . 27 46 24 38 31 5 . 37 82 67 27 14 36 14 Successful 292 | . 14 . 11 . 2 . 14 25 12 26 16 1 . 28 64 41 12 3 19 4 Failed 197 | . 11 . 3 . . . 13 21 12 12 15 4 . 9 18 26 15 11 17 10 Catastrophic 25 | . 1 . . . . . 2 1 . . 4 1 . . 1 4 5 3 2 1 Database Lockouts . | . . . . . . . . . . . . . . . . . . . . . Manual 185 | . 14 . 4 . 1 . 13 9 6 9 9 1 . 22 50 24 9 1 12 1 Terminals 328 | . 20 . 7 . . . 25 23 12 20 31 5 . 37 51 41 17 4 29 6 Fabricators 49 | . . . . . . . . 14 10 2 . . . . 15 . 3 3 . 2 Repair Stations 43 | . 5 . 4 . . . . 3 . 2 . . . . 9 9 2 3 . 6 Recycling Units 7 | . . . . . . . . . . 2 . . . . 5 . . . . . Scanalyzers 51 | . . . 3 . . . 2 6 . 11 . . . . . 16 2 4 7 . Garrison Access 9 | . . . . . . . . . 2 1 . . . . 2 1 3 . . . Terminal Hacks 136 | . 9 . 4 . 2 . 9 9 4 6 10 1 . 20 27 17 4 1 10 3 Record 9 | . . . 1 . 1 . 2 1 . . . . . 1 1 . . . 2 . Part Schematic 9 | . . . . . . . 1 . . 1 . . . 1 4 1 . . 1 . Robot Analysis 5 | . 1 . . . . . . . 1 . . . . 1 1 1 . . . . Prototype ID Bank 2 | . . . . . . . . . . . 1 . . . 1 . . . . . Open Door 7 | . . . . . . . . . . 1 5 1 . . . . . . . . Level Access Points 4 | . . . . . . . . . . . . . . 1 . 1 . . 1 1 Branch Access Points 8 | . 1 . . . . . 1 1 . 1 1 . . . 1 1 1 . . . Emergency Access Points 7 | . 1 . 1 . . . . . 1 . . . . 1 2 1 . . . . Machine Index 4 | . . . . . . . . 1 . . . . . 1 1 1 . . . . Terminal Index 1 | . . . . . . . . . . . . . . . . . . 1 . . Fabricator Index 1 | . . . . . . . . . . . . . . . . . . . . 1 Scanalyzer Index 1 | . . . . . . . . . . . . . . . . . . . 1 . Alert Level 3 | . . . . . . . . . . . . . . 1 . 1 1 . . . Unreport Threat 7 | . . . . . . . . . . . . . . 2 3 2 . . . . Locate Traps 24 | . 3 . 1 . . . . 4 2 1 1 . . 5 2 2 1 . 2 . Reprogram Traps 5 | . . . . . . . 1 . . . . . . 2 1 1 . . . . Security Status 1 | . . . . . . . . . . . . . . . . 1 . . . . Recall Investigation 2 | . . . . . . . . 1 . . . . . . . 1 . . . . Recall Extermination 3 | . . . . . . . . . . . . . . . 3 . . . . . Recall Reinforcements 2 | . . . . . . . . . . . . . . . 1 1 . . . . Hauler Manifests 3 | . 1 . 1 . . . 1 . . . . . . . . . . . . . Zone Layout 26 | . 2 . . . . . 3 1 . 2 2 . . 4 6 2 . . 3 1 EX-Prototype ID Bank 1 | . . . . . 1 . . . . . . . . . . . . . . . Protovariant Controls 1 | . . . . . . . . . . . . . . . . . 1 . . . Fabricator Hacks 22 | . . . . . . . . 6 5 2 . . . . 7 . 2 . . . Network Status 2 | . . . . . . . . 1 1 . . . . . . . . . . . Load Schematic 9 | . . . . . . . . 3 2 1 . . . . 2 . 1 . . . Build 11 | . . . . . . . . 2 2 1 . . . . 5 . 1 . . . Repair Station Hacks 29 | . 4 . 4 . . . . 3 . 1 . . . . 6 8 2 . . 1 Scan Component 16 | . 2 . 2 . . . . 2 . 1 . . . . 3 4 1 . . 1 Repair 12 | . 2 . 2 . . . . 1 . . . . . . 2 4 1 . . . Refit 1 | . . . . . . . . . . . . . . . 1 . . . . . Recycling Unit Hacks 5 | . . . . . . . . . . . . . . . 5 . . . . . Recycle Component 3 | . . . . . . . . . . . . . . . 3 . . . . . Process 1 | . . . . . . . . . . . . . . . 1 . . . . . Retrieve Matter 1 | . . . . . . . . . . . . . . . 1 . . . . . Scanalyzer 37 | . . . 3 . . . 2 3 . 9 . . . . . 12 2 2 4 . Insert Component 23 | . . . 2 . . . 1 2 . 4 . . . . . 7 2 2 3 . Analyze 14 | . . . 1 . . . 1 1 . 5 . . . . . 5 . . 1 . Garrison Access Hacks 6 | . . . . . . . . . 1 1 . . . . 2 1 1 . . . Unlock Access 1 | . . . . . . . . . . . . . . . 1 . . . . . Seal Access 5 | . . . . . . . . . 1 1 . . . . 1 1 1 . . . Unauthorized Hacks 57 | . 1 . . . . . 3 4 2 7 6 . . 8 17 3 1 . 5 . Terminals 46 | . 1 . . . . . 3 2 1 6 6 . . 8 10 3 1 . 5 . Track 19 | . 1 . . . . . 1 . . 2 3 . . 2 5 2 1 . 2 . Assimilate 4 | . . . . . . . 1 . . 1 . . . 1 1 . . . . . Botnet 10 | . . . . . . . . 2 . . 2 . . 2 2 1 . . 1 . Detonate 3 | . . . . . . . . . 1 1 . . . 1 . . . . . . Disrupt 4 | . . . . . . . . . . 1 . . . 1 1 . . . 1 . Operators 6 | . . . . . . . 1 . . 1 1 . . 1 1 . . . 1 . Fabricators 9 | . . . . . . . . 2 1 . . . . . 6 . . . . . Report 1 | . . . . . . . . . . . . . . . 1 . . . . . Prioritize 2 | . . . . . . . . . . . . . . . 2 . . . . . Siphon 5 | . . . . . . . . 2 1 . . . . . 2 . . . . . Haulers 1 | . . . . . . . . . . . . . . . 1 . . . . . Repair Stations 1 | . . . . . . . . . . . . . . . 1 . . . . . Mechanics 1 | . . . . . . . . . . . . . . . 1 . . . . . Recycling Units . | . . . . . . . . . . . . . . . . . . . . . Scanalyzers 1 | . . . . . . . . . . 1 . . . . . . . . . . Researchers 1 | . . . . . . . . . . 1 . . . . . . . . . . Garrison Access . | . . . . . . . . . . . . . . . . . . . . . Data Cores Recovered 1 | . . . . . . . 1 . . . . . . . . . . . . . Used 1 | . . . . . . . 1 . . . . . . . . . . . . . Hacking Detections 90 | . 7 . 4 . . . 6 12 6 7 8 2 . 5 10 6 5 4 5 3 Full Trace Events 7 | . . . . . . . 1 1 . 1 1 1 . . 1 . 1 . . . Feedback Events 1 | . . . . . . . . . . . . . . . . . 1 . . . Hackware Fried 1 | . . . . . . . . . . . . . . . . . 1 . . . Feedback Blocked . | . . . . . . . . . . . . . . . . . . . . . Robot Schematics Acquired . | . . . . . . . . . . . . . . . . . . . . . Robots Built . | . . . . . . . . . . . . . . . . . . . . . Matter . | . . . . . . . . . . . . . . . . . . . . . Time . | . . . . . . . . . . . . . . . . . . . . . Total Robot Build Rating . | . . . . . . . . . . . . . . . . . . . . . Part Schematics Acquired 19 | . . . 1 . . . 2 1 . 4 . . . 1 4 4 . . 2 . Parts Built 15 | . . . . . . . . 2 2 2 . . . . 8 . 1 . . . Matter 1436 | . . . . . . . . 152 222 168 . . . . 682 . 212 . . . Time 372 | . . . . . . . . 50 98 42 . . . . 129 . 53 . . . Total Part Build Rating 58 | . . . . . . . . 2 4 8 . . . . 38 . 6 . . . Parts Repaired 12 | . 2 . 2 . . . . 1 . . . . . . 2 4 1 . . . Time 395 | . 52 . 52 . . . . 26 . . . . . . 128 109 28 . . . Parts Recycled 3 | . . . . . . . . . . . . . . . 3 . . . . . Recycled Matter 84 | . . . . . . . . . . . . . . . 84 . . . . . Retrieved Matter 84 | . . . . . . . . . . . . . . . 84 . . . . . Retrieved Components . | . . . . . . . . . . . . . . . . . . . . . Parts Scanalyzed 15 | . . . 1 . . . 1 1 . 4 . . . . . 5 . 1 2 . Part Schematics Acquired 10 | . . . 1 . . . 1 1 . 3 . . . . . 3 . . 1 . Parts Damaged 2 | . . . . . . . . . . 1 . . . . . 1 . . . . Bothacking | -11 -10 -10 -9 -9 -9 -8 -8 -7 -6 -5 -5 -5 -5 -5 -4 -3 -3 -2 -2 -1 ------------ Run | Scr Mat Min Mat Min Exi Min Mat Fac Fac Fac Ext Cet Arc Hub Fac Res Tes Res Qua Acc Used RIF Installer . | . . . . . . . . . . . . . . . . . . . . . Robots Hacked . | . . . . . . . . . . . . . . . . . . . . . Non-combat . | . . . . . . . . . . . . . . . . . . . . . Combat . | . . . . . . . . . . . . . . . . . . . . . Robot Hacks Applied . | . . . . . . . . . . . . . . . . . . . . . Relay Couplers Released 5 | . . . . . . . . . . . . . . . . . . 2 . 3 Machine Destruction 2 | . . . . . . . . . . . . . . . . . . 2 . . Programmers 3 | . . . . . . . . . . . . . . . . . . . . 3 Robots Rewired 19 | . . . . . . . . . . . 15 . . . . . 1 3 . . Allies Hacked . | . . . . . . . . . . . . . . . . . . . . . Hacks Repelled . | . . . . . . . . . . . . . . . . . . . . . Allies | -11 -10 -10 -9 -9 -9 -8 -8 -7 -6 -5 -5 -5 -5 -5 -4 -3 -3 -2 -2 -1 -------- Run | Scr Mat Min Mat Min Exi Min Mat Fac Fac Fac Ext Cet Arc Hub Fac Res Tes Res Qua Acc Total Allies 49 | . . . . . . . 1 3 . . 22 1 . . 1 . 1 3 . 17 Largest Group 10 | . . . . . . . 1 3 . . 10 1 1 . 1 . 1 1 . 8 Highest-Rated Group 409 | . . . . . . . 10 93 . . 409 82 74 . 10 . 148 69 . 138 Highest-Rated Ally 156 | . . . . . . . 10 31 . . 156 82 74 . 10 . 148 69 . 69 Total Orders 9 | . . . . . . . . . . . 1 2 2 . 2 . 1 1 . . STAY 4 | . . . . . . . . . . . 1 1 1 . . . 1 . . . ROAM 1 | . . . . . . . . . . . . . . . . . . 1 . . FOLLOW 2 | . . . . . . . . . . . . 1 1 . . . . . . . EXPLORE 1 | . . . . . . . . . . . . . . . 1 . . . . . RETURN 1 | . . . . . . . . . . . . . . . 1 . . . . . Ally Attacks 327 | . . . . . . . . 22 . . 227 17 5 . . . . 17 . 39 Total Damage 9399 | . . . . . . . . 414 . . 6631 472 126 . . . . 1028 . 728 Kills 74 | . . . . . . . . 3 . . 57 4 2 . . . . 6 . 2 Allies Corrupted 2 | . . . . . . . . . . . 2 . . . . . . . . . Allies Melted . | . . . . . . . . . . . . . . . . . . . . . Field Lobotomies 5 | . . . . . . . . . . . 1 1 . . . . . . . 3 Intel | -11 -10 -10 -9 -9 -9 -8 -8 -7 -6 -5 -5 -5 -5 -5 -4 -3 -3 -2 -2 -1 ------- Run | Scr Mat Min Mat Min Exi Min Mat Fac Fac Fac Ext Cet Arc Hub Fac Res Tes Res Qua Acc Robot Analysis Total 5 | . 1 . . . . . . . 1 . . . . 1 1 1 . . . . Derelict Logs Recovered . | . . . . . . . . . . . . . . . . . . . . . Drone Launches 1 | . . . . . . . . . . . . . . . 1 . . . . . Drone Recoveries 1 | . . . . . . . . . . . . . . . 1 . . . . . Exploration | -11 -10 -10 -9 -9 -9 -8 -8 -7 -6 -5 -5 -5 -5 -5 -4 -3 -3 -2 -2 -1 ------------- Run | Scr Mat Min Mat Min Exi Min Mat Fac Fac Fac Ext Cet Arc Hub Fac Res Tes Res Qua Acc Turns Passed 21560 | 113 1347 362 787 106 809 760 861 2975 1308 1879 1890 631 349 787 2804 635 673 569 785 1130 Spaces Moved 12345 | 51 651 196 387 43 465 421 406 1418 742 920 806 231 128 375 1292 595 844 650 850 874 Core 156 | 4 . . . . . . . 3 . . 1 . . . . . . . . 148 Treads 4143 | 47 651 196 387 43 465 421 406 613 79 98 228 124 56 . 303 . . . . 26 Legs . | . . . . . . . . . . . . . . . . . . . . . Wheels 4291 | . . . . . . . . 802 663 822 577 107 72 375 873 . . . . . Hover 3755 | . . . . . . . . . . . . . . . 116 595 844 650 850 700 Flight . | . . . . . . . . . . . . . . . . . . . . . Fastest Speed 48 | 50 160 180 160 160 160 180 180 110 140 150 150 180 160 125 68 56 64 48 48 50 Average Speed 134 | 154 172 180 163 160 172 180 180 160 150 153 184 206 176 164 154 62 64 54 58 73 Slowest Speed 2650 | 160 180 180 180 160 180 180 180 1650 240 200 2650 220 200 230 220 68 64 64 138 145 Overloaded Moves . | . . . . . . . . . . . . . . . . . . . . . Propulsion Burnouts . | . . . . . . . . . . . . . . . . . . . . . Robots Hopped . | . . . . . . . . . . . . . . . . . . . . . Cave-ins Triggered 1 | . . . . . . . . . . . . . . . . . 1 . . . Exploration Rate (%) 44 | 4 97 47 31 12 72 78 28 35 18 17 86 78 78 49 21 17 76 16 49 19 Regions Visited 20 Branch Regions 10 Pre-discovered Areas 1 | . . . . . 1 . . . . . . . . . . . . . . . Known Exits Taken 8 | . 1 . . . . . . . . 1 1 . . 1 . 1 1 1 1 . Unknown Exits Taken 12 | 1 . 1 1 1 1 1 1 1 1 . . 1 1 . 1 . . . . . Scrap Searched 2 | . . . . . . 2 . . . . . . . . . . . . . . Spaces Dug 105 | . . . . . . . . 10 . 13 3 1 . 4 14 5 18 7 14 16 Terrain Destroyed 648 | . 5 4 . . . . 8 44 . 17 20 34 33 179 81 79 18 7 79 40 Melee 92 | . . . . . . . . 10 . 13 . 1 . 4 14 5 18 7 14 6 Projectile 77 | . . . . . . . . . . 4 10 . 2 4 38 . . . . 19 AOE 479 | . 5 4 . . . . 8 34 . . 10 33 31 171 29 74 . . 65 15 Terrain Rammed 2 | . . . . . . . . . . . . . . . . . . . . 2 Walls Destroyed . | . . . . . . . . . . . . . . . . . . . . . Machines Disabled . | . . . . . . . . . . . . . . . . . . . . . Actions | -11 -10 -10 -9 -9 -9 -8 -8 -7 -6 -5 -5 -5 -5 -5 -4 -3 -3 -2 -2 -1 --------- Run | Scr Mat Min Mat Min Exi Min Mat Fac Fac Fac Ext Cet Arc Hub Fac Res Tes Res Qua Acc Total 15965 | 72 788 200 517 78 474 423 505 1876 883 1206 1145 343 216 483 1801 822 923 830 1069 1311 Wait 1188 | . 65 1 64 35 . . 39 119 48 47 61 31 1 37 166 162 18 49 57 188 Move 12324 | 50 650 195 386 42 464 420 405 1417 741 919 805 230 127 374 1291 594 842 649 849 874 Hop . | . . . . . . . . . . . . . . . . . . . . . Pick Up 320 | 8 9 1 15 . 4 2 15 45 23 39 42 6 16 4 31 9 10 7 14 20 Fast Attach 104 | 6 5 . 7 . . . 2 10 1 9 2 . 3 2 5 5 6 16 12 13 Attach 205 | 1 1 . 2 . . . 2 16 4 19 6 9 7 16 47 9 7 5 12 42 Detach 76 | . . . . . . . 1 4 . 2 . 6 8 3 15 3 1 5 8 20 Swap 166 | . 3 . 7 . 2 1 5 43 11 11 23 6 3 2 31 5 1 6 4 2 Drop 289 | 1 2 . 22 . 4 . 11 47 17 22 39 6 16 7 14 6 6 16 17 36 Fire 834 | 6 52 3 14 1 . . 19 128 25 113 39 48 31 34 131 18 . 40 61 71 Melee 257 | . . . . . . . . 20 9 17 39 1 4 4 62 11 28 11 35 16 Ram 3 | . . . . . . . . . 1 . . . . . . . . . . 2 Kick . | . . . . . . . . . . . . . . . . . . . . . Crush 1 | . 1 . . . . . . . . . . . . . . . . . . . Escape Stasis 44 | . . . . . . . . . . . 16 . . . . . 1 . . 27 Rewire 29 | . . . . . . . . . . . . . . . . . 3 26 . . Trap 125 | . . . . . . . 6 27 3 8 73 . . . 8 . . . . . Miscellaneous . | . . . . . . . . . . . . . . . . . . . . . Route ------- -11/Scrapyard -10/Materials (discovered 5 exits: *Mat x3 / *Min x2) -10/Mines -9/Materials -9/Mines (discovered 2 exits: *Mat / *Exi) -9/Exiles (discovered 2 exits: [*Min x2]) -8/Mines -8/Materials -7/Factory (discovered 4 exits: *Fac x2 / Low x2) -6/Factory (discovered 3 exits: *Fac x2 / [*Low]) -5/Factory (discovered 4 exits: *Upp x2 / *Ext x2) -5/Extension (discovered 2 exits: *Fac / *Cet) -5/Cetus -5/Archives -5/Hub_04(d) (discovered 4 exits: *Fac x4) -4/Factory (discovered 4 exits: *Res x2 / Upp x2) -3/Research (discovered 6 exits: Res x3 / Arm / *Tes x2) -3/Testing -2/Research -2/Quarantine -1/Access History --------- Turn | Location | Event 22 | -11/Scrapyard | Discovered new exit (range 15) 114 | -11/Scrapyard | Entered Materials 262 | -10/Materials | Discovered new exit (range 9) 301 | -10/Materials | Build established: Mutant 340 | -10/Materials | Lost 3 parts (1p2w) 498 | -10/Materials | Discovered new exit (range 12) 575 | -10/Materials | Discovered new exit (range 15) 972 | -10/Materials | Core integrity fell below 50% 1027 | -10/Materials | Discovered new exit (range 15) 1036 | -10/Materials | Identified exit to Mines 1104 | -10/Materials | Repaired Lgt. Treads 1130 | -10/Materials | Repaired Lgt. Treads 1252 | -10/Materials | Discovered new exit (range 15) 1461 | -10/Materials | Entered Mines 1462 | -10/Mines | Assembled infested the area 1467 | -10/Mines | Assisted by a Guerilla fighting off Assembled 1539 | -10/Mines | Core integrity fell below 20% 1730 | -10/Mines | Discovered new exit (range 5) 1823 | -10/Mines | Entered Materials 1823 | -9/Materials | Evolved 2 slots: Propulsion x1, Utility x1 2066 | -9/Materials | Repaired Lgt. Treads 2094 | -9/Materials | Repaired Lgt. Treads 2506 | -9/Materials | Discovered new exit (range 11) 2610 | -9/Materials | Entered Mines 2670 | -9/Mines | Discovered new exit (range 9) 2709 | -9/Mines | Deemed a non-threat by the Exiles lab entrance 2709 | -9/Mines | Discovered new exit (range 5) 2716 | -9/Mines | Entered Exiles 2737 | -9/Exiles | Discovered new exit (range 15) 2756 | -9/Exiles | Met 8R-AWN 2780 | -9/Exiles | Met EX-HEX 2828 | -9/Exiles | Met EX-BIN 2848 | -9/Exiles | Aligned with FarCom system 2849 | -9/Exiles | Given EX-Vault access code 2886 | -9/Exiles | Opened EX-Vault 2896 | -9/Exiles | Found PSU Rigger 2929 | -9/Exiles | Warned to stay clear of 0b10 Research branches 3046 | -9/Exiles | Met EX-DEC 3100 | -9/Exiles | Learned location of Zion (-6) 3301 | -9/Exiles | Build established: Hauler-Mutant 3352 | -9/Exiles | Found Field Lobotomy Kit 3358 | -9/Exiles | Found Modified TNC 3508 | -9/Exiles | Discovered new exit (range 10) 3525 | -9/Exiles | Stole three prototypes: PSU Rigger, Field Lobotomy Kit, Modified TNC 3525 | -9/Exiles | Entered Mines 3567 | -8/Mines | Discovered new exit (range 6) 4285 | -8/Mines | Entered Materials 4285 | -8/Materials | Evolved 2 slots: Utility x2 4924 | -8/Materials | Discovered new exit (range 6) 5146 | -8/Materials | Entered Factory 5146 | -7/Factory | Evolved 2 slots: Utility x2 5148 | -7/Factory | FarCom data flow suspended 6142 | -7/Factory | Identified exit to Lower Caves 6468 | -7/Factory | Lost 4 parts (1p1n2w) 6573 | -7/Factory | Lost 3 parts (2n1u) 6732 | -7/Factory | Repaired Lrg. Storage Unit 6930 | -7/Factory | Fabricated Hcp. Storage Unit? 7029 | -7/Factory | Fabricated Hcp. Storage Unit? 7517 | -7/Factory | Discovered new exit (range 5) 7529 | -7/Factory | Allied Derelicts emerged from ambush trap array 7546 | -7/Factory | First assault squad dispatched 7819 | -7/Factory | Discovered new exit (range 13) 7964 | -7/Factory | Destroyed 7 combat bots 8121 | -7/Factory | Entered another Factory area 8121 | -6/Factory | Evolved 2 slots: Utility x2 8179 | -6/Factory | Discovered new exit (range 11) 8943 | -6/Factory | Discovered new exit (range 7) 9033 | -6/Factory | Fabricated Hacking Suite (x1) 9263 | -6/Factory | Discovered new exit (range 11) 9314 | -6/Factory | Garrison activated, responded to threat 9327 | -6/Factory | Fabricated Hcp. Storage Unit? 9429 | -6/Factory | Entered another Factory area 9429 | -5/Factory | Evolved 2 slots: Utility x2 9588 | -5/Factory | Identified exit to Upper Caves 9588 | -5/Factory | Identified exit to Extension 9814 | -5/Factory | Destroyed 7 combat bots 9820 | -5/Factory | Lost 7 parts (1p1n3u2w) 10685 | -5/Factory | Lost 6 parts (1n4u1w) 11040 | -5/Factory | Fabricated Arm. Huge Wheel (x2) 11308 | -5/Factory | Entered Extension 11434 | -5/Extension | Rescued a captive Derelict 11446 | -5/Extension | Rescued a captive Derelict 11494 | -5/Extension | Identified exit to Cetus 11507 | -5/Extension | Rescued a captive Derelict 11561 | -5/Extension | Rescued A7 11584 | -5/Extension | Rescued a captive Derelict 11782 | -5/Extension | Spotted B-75 Beast 11792 | -5/Extension | Spotted B-75 Beast 11795 | -5/Extension | Assimilated B-75 Beast with FLK Orb 11804 | -5/Extension | Allies destroyed B-75 Beast 11908 | -5/Extension | First assault squad dispatched 12022 | -5/Extension | Rescued a captive Derelict 12457 | -5/Extension | Discovered new exit (range 16) 12522 | -5/Extension | Energy Cycler disabled 12523 | -5/Extension | Rescued a captive Derelict 12524 | -5/Extension | Rescued a captive Derelict 12528 | -5/Extension | Rescued a captive Derelict 12530 | -5/Extension | Rescued a captive Derelict 12533 | -5/Extension | Disrupted transfer network 13164 | -5/Extension | Disrupted transfer network 13181 | -5/Extension | Extracted ID and sensor layout for unrecognized location from A7's data core 13198 | -5/Extension | Entered Cetus 13221 | -5/Cetus | Spotted Cetus Guard 13221 | -5/Cetus | Spotted Cetus Guard 13224 | -5/Cetus | Spotted Cetus Guard 13267 | -5/Cetus | Destroyed Cetus Guard 13272 | -5/Cetus | Spotted Cetus Guard 13274 | -5/Cetus | Assimilated Cetus Guard with FLK Orb 13277 | -5/Cetus | Destroyed Cetus Guard 13794 | -5/Cetus | Discovered new exit (range 15) 13829 | -5/Cetus | Entered Archives 13829 | -5/Archives | Accompanied by 1 ally 13915 | -5/Archives | Core integrity fell below 50% 14137 | -5/Archives | Discovered new exit (range 15) 14178 | -5/Archives | Entered Hub_04(d) 14249 | -5/Hub_04(d) | Identified exit to Factory 14837 | -5/Hub_04(d) | Build established: Scavenger-Mutant 14961 | -5/Hub_04(d) | Lost 4 parts (3u1w) 14962 | -5/Hub_04(d) | Network Hub disabled 14965 | -5/Hub_04(d) | Entered Factory 14965 | -4/Factory | Evolved 2 slots: Propulsion x1, Utility x1 15282 | -4/Factory | Build established: Wizard-Mutant 15881 | -4/Factory | Garrison activated, responded to threat 15911 | -4/Factory | Discovered new exit (range 14) 16081 | -4/Factory | Identified exit to Garrison 16204 | -4/Factory | Destroyed 7 combat bots 16233 | -4/Factory | Discovered new exit (range 19) 16233 | -4/Factory | Identified exit to Upper Caves 16262 | -4/Factory | Fabricated Hcp. Storage Unit (x1) 16277 | -4/Factory | Fabricated Hcp. Storage Unit (x1) 16543 | -4/Factory | Repaired Centrium Heavy Treads? 17008 | -4/Factory | Repaired Railgun 17379 | -4/Factory | Fabricated Cmb. Gravmag System (x2) 17419 | -4/Factory | Fabricated Cmb. Gravmag System (x2) 17453 | -4/Factory | Fabricated Cmb. Gravmag System (x2) 17457 | -4/Factory | Local fabrication network quarantined 17465 | -4/Factory | First assault squad dispatched 17487 | -4/Factory | System corruption reached 10% 17500 | -4/Factory | Core integrity fell below 50% 17542 | -4/Factory | Lost 5 parts (3n2w) 17720 | -4/Factory | Core integrity fell below 20% 17769 | -4/Factory | Entered Research 17769 | -3/Research | Evolved 2 slots: Power x1, Propulsion x1 17883 | -3/Research | Identified exit to Research 17883 | -3/Research | Identified exit to Armory 17883 | -3/Research | Identified exit to Testing 18013 | -3/Research | Repaired Lrn. Sensor Array 18043 | -3/Research | Repaired Cmb. Gravmag System 18072 | -3/Research | Repaired Cmb. Gravmag System 18103 | -3/Research | Repaired Railgun 18360 | -3/Research | Found Prototype Slashing Weapon 18404 | -3/Research | Entered Testing 18443 | -3/Testing | Identified Centrium Greatsword 18470 | -3/Testing | Found Prototype Device 18484 | -3/Testing | Identified Exp. Thermal Shield 18546 | -3/Testing | Found Prototype Energy Gun 18566 | -3/Testing | Identified Tachyon Dispersion Ray 18567 | -3/Testing | Build established: Hacker-Mutant 18621 | -3/Testing | Spotted PY-1ZCGZMPWI5 18628 | -3/Testing | Rewired PY-1ZCGZMPWI5 18651 | -3/Testing | Found Prototype Launcher 18654 | -3/Testing | First assault squad dispatched 18751 | -3/Testing | Imp. System Shield fried by hacking feedback 18847 | -3/Testing | Repaired Smartbomb Launcher 18913 | -3/Testing | Crushed by falling debris 18925 | -3/Testing | Found Prototype Processor 18925 | -3/Testing | Identified Exp. Signal Interpreter 18950 | -3/Testing | Identified Adv. Micro-nuke Launcher 18960 | -3/Testing | Lost 6 parts (1p4u1w) 18989 | -3/Testing | Found Prototype Processor 18989 | -3/Testing | Identified Spectral Analyzer 18993 | -3/Testing | Found Exp. Thermal Shield 19021 | -3/Testing | Protovariant out of control (PL-OOCM1JHQ70) 19021 | -3/Testing | Unleashed a protovariant (PL-OOCM1JHQ70) 19035 | -3/Testing | Fabricated Imp. Powered Armor (x1) 19049 | -3/Testing | Discovered exit to Research (range 16) 19077 | -3/Testing | Entered Research 19077 | -2/Research | Evolved 2 slots: Utility x2 19151 | -2/Research | Garrison activated, responded to threat 19292 | -2/Research | Discovered new exit (range 9) 19464 | -2/Research | Build established: Scavenger-Mutant 19491 | -2/Research | Identified exit to Quarantine 19577 | -2/Research | First assault squad dispatched 19646 | -2/Research | Entered Quarantine 19647 | -2/Quarantine | Spotted Alpha 7 19706 | -2/Quarantine | Found Alien Artifact 19710 | -2/Quarantine | Lost 6 parts (1p1n3u1w) 19771 | -2/Quarantine | Found Alien Artifact 19771 | -2/Quarantine | Identified Subatomic Replicator 19777 | -2/Quarantine | Used Subatomic Replicator to replicate Alien Artifact 19779 | -2/Quarantine | Identified Phase Armor 20242 | -2/Quarantine | Identified exit to Access 20281 | -2/Quarantine | Found Alien Artifact 20339 | -2/Quarantine | Found Alien Impact Weapon 20339 | -2/Quarantine | Identified Core Stripper 20384 | -2/Quarantine | Identified Core Reset Matrix 20431 | -2/Quarantine | Entered Access 20431 | -1/Access | Evolved 2 slots: Utility x2 20590 | -1/Access | Build established: Scavenger-Scout 20849 | -1/Access | Assimilated H-88 Terminator with FLK Orb 20868 | -1/Access | Lost 4 parts (2n1u1w) 20918 | -1/Access | Destroyed 11 combat bots 20983 | -1/Access | Identified exit to Surface 21217 | -1/Access | Build established: Scavenger-Mutant 21227 | -1/Access | First assault squad dispatched 21384 | -1/Access | Lost 6 parts (2n2u2w) 21450 | -1/Access | Assimilated H-88 Terminator with FLK Orb 21452 | -1/Access | Assimilated H-88 Terminator with FLK Orb 21457 | -1/Access | Identified Phase Armor 21457 | -1/Access | Used Core Reset Matrix 21460 | -1/Access | Core integrity fell below 50% 21463 | -1/Access | Emitted hypermatrix ping 21467 | -1/Access | Core integrity fell below 20% 21468 | -1/Access | Assembled emerged from beneath the floor 21476 | -1/Access | Assembled emerged from beneath the floor 21494 | -1/Access | Lost 10 parts (2p3n5u) 21555 | -1/Access | System corruption reached 10% 21561 | -1/Access | Destroyed by H-88 Terminator with KE Penetrator Last Messages --------------- 21533_ Penetrated by Slug. 21545_ Detected hypermatrix ping. 21550_ Slammed into Wall. 21550_ Adv. Weapon Cycler destroyed. 21550_ Exp. Signal Interpreter destroyed. 21550_ System Shield destroyed. 21550_ System corrupted by crushing effect (+1). 21550_ System corrupted by crushing effect (+2). 21550_ System corrupted by crushing effect (+3). 21550_ Destabilizing: System interference. 21550_ Adv. Target Analyzer temporarily disabled. 21550_ Adv. Visual Processing Unit permanently disabled. 21550_ Destabilizing: Short circuit. 21554_ Slammed into Wall. 21554_ Adv. Target Analyzer destroyed. 21554_ System corrupted by crushing effect (+2). 21554_ Destabilizing: System corrupted (+2). 21554_ Destabilizing: Core damaged (-48). 21561_ Drone sends a signal. 21561_ Slug penetrates Wall. Map ----- +----------------------------------------------------+ | ?????????????????????????????????????????????????? | | ?????????????????????????????????????????????????? | | ?????????????????????????????????????????????????? | | ?????????????????????????????????????????????????? | | ?????????????????????????????????????????????????? | | ?????????????????????????????????????????????????? | | ?????????????????????????????????????????????????? | | ?????????????????????????????????????????????????? | | ?????????????????????????????????????????????????? | | ?????????????????????????????????????????????????? | | ?????????????????????????????????????????????????? | | ?????????????????????????????????????????????????? | | ?????????????????????????????????????????????????? | | ?????????????????????????????????????????????????? | | ?????????????????????????????????????????????????? | | ?????????????????????????????????????????????????? | | ?????????????????????????????????????????????????? | | ?????????????????????????????????????????????????? | | ?????????????????????????????????????????????????? | | ?????????????????????????????????????????????????? | | ?????????????##############??????????????????????? | | ?????????????# #??????????????????????? | | ?????????????# #??????????????????????? | | ?????????????# "" #??????????????????????? | | ?????????????# "" #??????????????????????? | | ?????????????# """" @#??????????????????????? | | ?????????????# """" #??????????????????????? | | ?????????????# """" #??????????????????????? | | ?????????????# """" #??????????????????????? | | ?????????????# """" #??????????????????????? | | ?????????????# "" #??????????????????????? | | ?????????????# #??????????????????????? | | ?????????????# n #??????????????????????? | | ?????????????#######/#############+###???????????? | | ????????????????# #? #???????????? | | ????????????????# # #???????????? | | ????????????????# # #???????????? | | ????????????????+ / #???????????? | | ????????????????# # #???????????? | | ????????????????# # #???????????? | | ????????????????+ #? #???????????? | | #???????????????# #? "" """ #???????????? | | ???????????????# #?? ""F""" #???????????? | | #???????????????# #?? """"" ?????????????? | | #???????????????# #??? ????????????????? | | #???????????????# #??? ???????????????? | | #???????????????# #????######??????????????? | | ################# ########?????????????????? | | ^ #?????????????????? | | #############?????? | +----------------------------------------------------+ Best States ------------- Heat Dissipation 106 Coolant Potential 50 Energy Generation 51 Energy Capacity 1740 Matter Stores 500 Matter Capacity 800 Sight Range 20 Robot Scan Range 20 Terrain Scan Density 10 ECM Strength 3 Power Amplification 40 Additional Mass Support 9 Armor Coverage 900 Resistance: TH 30 Power Shielding 66 Weapon Shielding 66 Reclamation Efficiency 25 Weapon Cycling 25 Phase Shifting 15 Evasion (%) 67 Targeting Accuracy 16 Target Analysis 8 Core Analysis 10 Recoil Reduction 4 Energy Filtering 30 Overload Amplification 50 Salvage Targeting 1 Offensive Hacking 48 Defensive Hacking 36 Item Schematics ----------------- None Robot Schematics ------------------ None Fabricated ------------ Hcp. Storage Unit | x1 | -7/Factory Hcp. Storage Unit | x1 | -7/Factory Hacking Suite | x1 | -6/Factory Hcp. Storage Unit | x1 | -6/Factory Arm. Huge Wheel | x2 | -5/Factory Hcp. Storage Unit | x1 | -4/Factory Hcp. Storage Unit | x1 | -4/Factory Cmb. Gravmag System | x2 | -4/Factory Cmb. Gravmag System | x2 | -4/Factory Cmb. Gravmag System | x2 | -4/Factory Imp. Powered Armor | x1 | -3/Testing Alien Tech Used ----------------- Subatomic Replicator Phase Armor Core Stripper Core Reset Matrix Achievements -------------- None Challenges ------------ None Game ------ Seed DroneDiametricInjector Manual? 0 Play Time 05:29:37 Cumulative 324.8 hours Start 2021.12.19 @ 21:19:24 End 2022.01.06 @ 18:34:10 Sessions 11 Manual Loads 0 Difficulty Rogue Special Mode None Game No. 120 Rogue 120 Adventurer 0 Explorer 0 Win Type - Total 12 Types 10/0/1/1/0/0/0/0/0 Lore% 68 Gallery% 87 Achievement% 67 Wizard Run 0 Options --------- ASCII 0 Keyboard 0 Movement Numpad Keybinds 0 Fullscreen 1 Font 18/SmallcapsGlow Map View 76x50 Tactical HUD 1 Map Filters NONE Filters NONE Steam 1 RUN: 35710dea-6346-40d4-ad35-56dcbfa1d54c